bitfinex-derivatives/quotes_SOLF0:USTF0_20251006
["timestamp","ask_amount","ask_price","bid_price","bid_amount"]
[1759775855175,3.03343628,235.24,235.13,7.2]
[1759775855376,3.03343628,235.24,235.18,7.2]
[1759775860679,3.03343628,235.24,235.19,7.65]
[1759775860886,3.03343628,235.24,235.18,11.4744]
[1759775861086,107.26,235.25,235.18,11.4744]
[1759775861286,3.01289659,235.24,235.18,11.4744]
[1759775862191,109.97289659,235.24,235.18,11.4744]
[1759775862390,106.96,235.24,235.18,11.4744]
[1759775863890,106.96,235.24,235.21,7.65]
[1759775864089,106.9,235.24,235.21,7.65]
[1759775865293,6.85750854,235.28,235.21,7.65]
[1759775865595,109.85287724,235.27,235.21,7.65]
[1759775865789,4.07539286,235.26,235.21,7.65]
[1759775867293,4.07539286,235.26,235.14,7.65]
[1759775867483,4.07539272,235.26,235.14,7.65]
[1759775867884,4.07539272,235.26,235.2,11.4741]
[1759775868090,4.07539272,235.26,235.2,3.8241]
[1759775868596,4.07539272,235.26,235.2,11.7041]
[1759775868798,3.8235,235.25,235.12,7.88]
[1759775868992,3.01287724,235.24,235.12,7.88]
[1759775869900,3.01287724,235.24,235.18,3.8244]
[1759775870200,3.01287724,235.24,235.18,11.7044]
[1759775875606,3.01287724,235.24,235.18,7.88]
[1759775875908,6.83647724,235.24,235.18,7.88]
[1759775876103,3.01287724,235.23,235.18,7.88]
[1759775876405,3.01287724,235.23,235.1,3.03460854]
[1759775876406,3.01287724,235.23,235.14,7.88]
[1759775876602,4.07539272,235.26,235.14,7.88]
[1759775877703,4.07539272,235.26,235.19,11.7042]
[1759775878710,3.8234,235.25,235.19,11.7042]
[1759775878904,3.01287724,235.24,235.18,7.88]
[1759775880206,3.01287724,235.24,235.18,11.7044]
[1759775881407,6.83647724,235.24,235.18,7.88]
[1759775881713,3.01287724,235.23,235.17,7.88]
[1759775882914,3.01287724,235.23,235.17,11.7045]
[1759775883114,3.01287724,235.23,235.17,7.88]
[1759775884109,3.01287724,235.25,235.17,7.88]
[1759775884311,4.07546698,235.26,235.17,7.88]
[1759775885110,5.76673017,235.25,235.18,3.8244]
[1759775885317,3.01287724,235.24,235.18,3.8244]
[1759775885517,4.07546698,235.24,235.17,7.88]
[1759775885818,4.07546698,235.24,235.17,11.7045]
[1759775888018,7.89916698,235.24,235.17,11.7045]
[1759775888216,3.01287724,235.23,235.17,11.7045]
[1759775889615,4.07546698,235.23,235.17,11.7045]
[1759775890714,3.8242,235.2,235.13,7.88]
[1759775890922,108.93287724,235.19,235.13,7.88]
[1759775891220,3.01236517,235.18,235.1,7.88]
[1759775893620,4.07515347,235.18,235.14,3.8251]
[1759775893810,3.01236517,235.18,235.14,3.8251]
[1759775894015,3.01236517,235.18,235.15,7.88]
[1759775894215,3.01236517,235.18,235.14,3.8251]
[1759775894419,3.01236517,235.18,235.15,7.88]
[1759775894617,3.01236517,235.18,235.17,7.88]
[1759775895924,105.92,235.19,235.17,7.88]
[1759775896421,3.00871575,235.18,235.17,7.88]
[1759775896624,3.00871575,235.19,235.17,7.88]
[1759775897426,3.00871575,235.19,235.18,7.88]
[1759775897619,44.8,235.21,235.15,59.4993]
[1759775897825,4.71602074,235.32,235.16,9.82323017]
[1759775898025,1.94323017,235.3,235.19,1.94323017]
[1759775898225,6.01477731,235.3,235.2,7.72]
[1759775898421,3.8228,235.29,235.23,11.5436]
[1759775898724,3.0090237,235.28,235.24,7.72]
[1759775899118,6.01477731,235.3,235.24,7.72]
[1759775899724,9.83747731,235.3,235.24,7.72]
[1759775899926,4.07154714,235.29,235.24,7.72]
[1759775900828,4.07154714,235.29,235.23,11.5436]
[1759775901327,4.07154714,235.29,235.24,7.72]
[1759775901629,105.96,235.28,235.23,3.8236]
[1759775901924,4.07154714,235.27,235.23,3.8236]
[1759775902224,4.07154714,235.27,235.24,7.72]
[1759775902827,4.07154714,235.27,235.23,3.8236]
[1759775903030,4.07154714,235.27,235.24,7.72]
[1759775903529,4.07154714,235.27,235.23,3.8236]
[1759775903724,4.07154714,235.27,235.25,7.72]
[1759775903929,3.0090237,235.26,235.25,7.72]
[1759775904129,4.07154714,235.27,235.25,7.72]
[1759775904725,4.07154714,235.27,235.24,3.8234]
[1759775905230,4.07154714,235.27,235.25,7.72]
[1759775905524,4.07154714,235.27,235.24,3.8234]
[1759775905724,309.5,235.33,235.24,7.72]
[1759775905931,4.05933307,235.32,235.24,7.72]
[1759775906819,4.05933307,235.32,235.26,7.72]
[1759775908225,4.05933307,235.32,235.29,7.72]
[1759775908826,4.05933307,235.32,235.26,3.8232]
[1759775909026,6.00256324,235.32,235.26,7.72]
[1759775909821,9.82496324,235.32,235.26,7.72]
[1759775910025,4.05933307,235.31,235.25,7.72]
[1759775910228,1.94323017,235.29,235.22,7.72]
[1759775910428,105.68,235.28,235.22,7.72]
[1759775910627,4.04770538,235.27,235.17,7.72]
[1759775911127,2.98526164,235.27,235.2,59.4875]
[1759775911328,4.04718363,235.32,235.24,7.72]
[1759775912627,4.04718363,235.32,235.28,7.72]
[1759775913134,4.04718363,235.32,235.23,7.72]
[1759775915336,4.04718363,235.32,235.23,59.4791]
[1759775915537,4.04718363,235.32,235.24,7.72]
[1759775916736,4.04718363,235.32,235.3,7.72]
[1759775917336,1.06239185,235.32,235.3,7.72]
[1759775917738,105.64,235.31,235.3,7.72]
[1759775918135,105.64,235.31,235.26,7.72]
[1759775918838,2.6830025,235.37,235.26,7.72]
[1759775918839,105.62,235.35,235.26,7.72]
[1759775919041,1.06218211,235.34,235.26,7.72]
[1759775919740,1.06218211,235.34,235.3,11.5426]
[1759775920244,1.94323017,235.34,235.3,11.5426]
[1759775920949,1.94323017,235.34,235.3,3.8226]
[1759775921244,1.94323017,235.34,235.3,11.5426]
[1759775921939,1.94323017,235.34,235.3,3.8226]
[1759775922140,1.94323017,235.34,235.31,7.72]
[1759775922345,105.5,235.37,235.31,7.72]
[1759775923643,105.5,235.37,235.3,7.72]
[1759775924540,105.5,235.37,235.34,3.8218]
[1759775924746,105.5,235.37,235.31,7.72]
[1759775925756,105.5,235.37,235.36,7.72]
[1759775926549,3.8205,235.43,235.36,7.72]
[1759775926748,107.38323017,235.42,235.36,7.72]
[1759775928347,107.38323017,235.42,235.36,11.5414]
[1759775930250,107.38323017,235.42,235.34,3.8219]
[1759775930546,1.94323017,235.39,235.34,3.8219]
[1759775930847,1.94323017,235.39,235.35,3.8216]
[1759775931044,1.94323017,235.39,235.35,11.3416]
[1759775931246,1.94323017,235.39,235.24,7.6471]
[1759775931247,1.94323017,235.36,235.24,9.46323017]
[1759775931446,1.94323017,235.32,235.27,3.8229]
[1759775931646,1.94323017,235.29,235.24,7.52]
[1759775934052,1.94323017,235.29,235.2,7.52]
[1759775934648,1.94323017,235.26,235.2,7.52]
[1759775934954,1.94323017,235.26,235.22,7.52]
[1759775935848,64.15472074,235.4,235.23,3.8237]
[1759775936048,1.94323017,235.3,235.24,7.52]
[1759775936253,105.44,235.29,235.2,7.52]
[1759775936957,1.94323017,235.3,235.2,7.52]
[1759775937154,107.38323017,235.3,235.2,7.52]
[1759775937555,107.38323017,235.3,235.24,3.8235]
[1759775938353,107.36323017,235.3,235.24,3.8235]
[1759775938560,107.34323017,235.3,235.24,3.8235]
[1759775938958,1.94323017,235.3,235.24,3.8235]
[1759775939157,105.38,235.29,235.24,11.3435]
[1759775941458,105.38,235.29,235.24,7.52]
[1759775945974,1.94323017,235.29,235.23,11.3437]
[1759775946771,1.94323017,235.29,235.21,3.824]
[1759775946977,1.94323017,235.26,235.21,3.824]
[1759775947176,3.03625809,235.27,235.21,3.824]
[1759775948381,3.03625809,235.27,235.19,3.8243]
[1759775949275,5.99056424,235.27,235.19,3.8243]
[1759775950177,3.8232,235.26,235.18,7.52]
[1759775951682,2.95235603,235.25,235.14,11.3452]
[1759775951871,2.95235603,235.26,235.14,11.3452]
[1759775952075,2.95235603,235.26,235.14,7.52]
[1759775952275,3.8234,235.25,235.13,7.52]
[1759775952475,2.95235603,235.24,235.13,7.52]
[1759775953076,3.8234,235.25,235.13,7.52]
[1759775953581,3.8234,235.25,235.17,3.8245]
[1759775954779,3.8234,235.25,235.16,7.52]
[1759775955181,2.94886622,235.24,235.16,7.52]
[1759775955380,4.01159795,235.26,235.16,7.52]
[1759775956389,3.8238,235.23,235.16,7.52]
[1759775956587,105.22,235.22,235.16,7.52]
[1759775960182,109.044,235.22,235.13,7.31]
[1759775961089,105.22,235.22,235.08,7.31]
[1759775961988,3.8245,235.19,235.08,11.136]
[1759775962285,12.77805516,235.27,235.08,7.31]
[1759775962478,3.03625809,235.24,235.08,7.31]
[1759775962884,60.42,235.23,235.08,7.31]
[1759775963291,3.8242,235.2,235.08,7.31]
[1759775963792,72.68,235.22,235.08,7.31]
[1759775964090,3.03625809,235.24,235.08,7.31]
[1759775964293,40.62,235.23,235.08,7.31]
[1759775964488,3.03625809,235.24,235.08,7.31]
[1759775964688,3.8245,235.19,235.1,7.31]
[1759775966289,21.66,235.18,235.1,7.31]
[1759775966886,39.78,235.17,235.1,7.31]
[1759775967790,39.78,235.17,235.1,11.1357]
[1759775969594,55.88,235.18,235.1,11.1357]
[1759775969799,72.28,235.18,235.1,11.1357]
[1759775970298,3.8245,235.19,235.1,11.1357]
[1759775970795,21.7,235.18,235.1,11.1357]
[1759775971196,39.8,235.19,235.1,7.31]
[1759775971991,39.8,235.19,235.12,3.8254]
[1759775972186,39.8,235.19,235.12,11.1354]
[1759775976599,43.6245,235.19,235.12,7.31]
[1759775978801,3.8245,235.19,235.12,11.1354]
[1759775979190,3.8247,235.17,235.12,7.31]
[1759775979590,1.06285794,235.19,235.1,3.8258]
[1759775979795,4.01702435,235.19,235.11,7.23]
[1759775980604,7.84142435,235.19,235.11,7.23]
[1759775980901,4.88725794,235.19,235.11,7.23]
[1759775982401,4.88725794,235.19,235.03,7.23]
[1759775982402,3.03625809,235.14,235.03,7.23]
[1759775982793,5.99279311,235.14,235.03,7.23]
[1759775983802,3.8258,235.11,235.03,7.23]
[1759775984102,102.4858,235.11,235.03,7.23]
[1759775985295,98.66,235.11,235.03,7.23]
[1759775987305,98.66,235.11,235.03,11.0568]
[1759775987701,98.66,235.11,235.04,7.23]
[1759775987896,105.24,235.12,235.04,7.23]
[1759775989403,3.03625809,235.05,234.94,7.75]
[1759775989707,105.24,235.04,234.94,7.75]
[1759775989908,105.24,235.04,234.91,59.5601]
[1759775989909,105.24,235.04,234.96,7.75]
[1759775990209,3.8264,235.07,234.96,7.75]
[1759775990403,40.42,235.06,234.96,7.75]
[1759775990705,40.42,235.06,234.98,7.75]
[1759775991102,78.82,235.07,234.98,7.75]
[1759775991905,7.75227883,235.18,235.0,7.75]
[1759775992106,105.59193532,235.14,235.0,7.75]
[1759775992303,4.01567723,235.13,235.0,7.75]
[1759775992508,3.8257,235.11,235.0,7.75]
[1759775993606,3.8257,235.11,235.0,3.8274]
[1759775993806,3.8257,235.11,235.01,7.75]
[1759775994808,3.8257,235.11,235.03,7.75]
[1759775996510,105.24,235.12,235.03,7.75]
[1759775998206,105.24,235.12,235.05,7.75]
[1759775998408,3.8248,235.17,235.05,7.75]
[1759775998814,7.28819649,235.19,235.03,62.56615809]
[1759775998815,112.52819649,235.19,235.09,7.75]
[1759775999006,2.95291517,235.18,235.09,7.75]
[1759775999211,2.9533406,235.18,235.09,7.75]
[1759775999910,112.52819649,235.19,235.09,7.75]
[1759776000508,112.52819649,235.19,235.1,3.8258]
[1759776000702,7.28819649,235.19,235.11,7.75]
[1759776000907,3.03625809,235.26,235.11,7.75]
[1759776001103,3.8236,235.24,235.12,7.75]
[1759776001304,2.9540365,235.23,235.12,7.75]
[1759776001812,4.88645254,235.24,235.12,7.75]
[1759776002014,2.954148,235.23,235.12,7.75]
[1759776002311,3.03625809,235.22,235.12,7.75]
[1759776002608,3.03625809,235.2,235.05,7.75]
[1759776002810,6.778248,235.21,235.06,59.5218]
[1759776003006,6.778248,235.21,235.07,7.75]
[1759776003007,3.8241,235.21,235.07,7.75]
[1759776004504,3.03625809,235.23,235.13,7.75]
[1759776004709,5.98986499,235.23,235.13,7.75]
[1759776005016,2.9536069,235.23,235.13,7.75]
[1759776005315,4.0164345,235.24,235.13,7.75]
[1759776005614,3.8239,235.23,235.13,7.75]
[1759776005811,2.9536069,235.22,235.13,7.75]
[1759776006313,3.824,235.21,235.13,7.75]
[1759776007114,1.9441559,235.19,235.13,7.75]
[1759776009318,3.824,235.21,235.13,7.75]
[1759776009519,1.9441559,235.2,235.13,7.75]
[1759776010217,1.9441559,235.17,235.04,9.6941559]
[1759776010416,1.9441559,235.14,235.05,7.75]
[1759776011712,1.9441559,235.14,235.05,11.5765]
[1759776013523,3.8252,235.15,235.07,7.75]
[1759776013713,1.9441559,235.14,235.07,7.75]
[1759776015417,3.8252,235.15,235.07,7.75]
[1759776015626,1.9441559,235.13,235.07,7.75]
[1759776017718,5.7694559,235.13,235.07,7.75]
[1759776017917,1.9441559,235.1,235.0,7.75]
[1759776018921,1.9441559,235.1,235.02,7.99]
[1759776020026,1.9441559,235.1,235.04,7.99]
[1759776021219,5.7698559,235.11,235.04,7.99]
[1759776022122,1.9441559,235.11,235.04,7.99]
[1759776022321,1.9441559,235.11,235.0,5.7714559]
[1759776022322,1.9441559,235.08,234.98,3.8277]
[1759776022526,1.9441559,235.05,234.99,7.99]
[1759776023433,1.9441559,235.05,234.93,1.9441559]
[1759776023434,3.8268,235.04,234.94,7.99]
[1759776024221,3.8268,235.04,234.93,1.9441559]
[1759776024222,3.8268,235.04,234.95,3.8282]
[1759776024531,3.8268,235.04,234.96,7.99]
[1759776026228,5.7709559,235.04,234.96,7.99]
[1759776026728,3.8271,235.03,234.96,7.99]
[1759776027125,1.9441559,235.01,234.96,7.99]
[1759776027326,5.7714559,235.01,234.96,7.99]
[1759776027932,1.9441559,235.02,234.96,7.99]
[1759776028428,1.9441559,234.99,234.92,7.99]
[1759776030840,12.75867527,235.04,234.92,7.99]
[1759776031134,1.9441559,235.0,234.92,7.99]
[1759776031837,4.71602074,235.12,234.86,59.5727]
[1759776031838,1.9441559,235.04,234.93,1.9441559]
[1759776032134,13.28,235.06,234.94,7.99]
[1759776032336,1.9441559,235.04,234.94,7.99]
[1759776032643,26.13834586,235.06,234.94,7.99]
[1759776032832,1.9441559,235.04,234.94,7.99]
[1759776033530,1.9441559,235.04,234.94,11.8183]
[1759776033738,1.9441559,235.04,234.95,7.99]
[1759776036142,3.827,235.03,234.95,7.99]
[1759776038638,3.8273,235.01,234.95,7.99]
[1759776039736,1.9441559,235.01,234.95,7.99]
[1759776039937,1.9441559,234.98,234.91,7.32]
[1759776043541,3.8281,234.96,234.91,7.32]
[1759776043742,3.8281,234.96,234.89,7.32]
[1759776044143,3.8284,234.95,234.89,7.32]
[1759776044349,1.9441559,234.95,234.89,7.32]
[1759776045549,3.8286,234.94,234.89,7.32]
[1759776045745,3.8286,234.94,234.87,7.32]
[1759776047856,3.828,234.97,234.87,7.32]
[1759776048247,3.828,234.97,234.87,1.9441559]
[1759776048451,3.828,234.97,234.88,7.27]
[1759776049557,3.8282,234.96,234.89,7.27]
[1759776049758,1.9441559,234.98,234.89,7.27]
[1759776049953,105.22,234.99,234.89,7.27]
[1759776050158,1.9441559,234.96,234.89,7.27]
[1759776050359,3.8284,234.95,234.89,7.27]
[1759776051157,3.8279,234.97,234.89,7.27]
[1759776053363,1.9441559,234.99,234.89,11.0991]
[1759776053559,107.1641559,234.99,234.9,7.27]
[1759776054063,3.8279,234.98,234.9,7.27]
[1759776057266,105.22,234.99,234.9,7.27]
[1759776057562,105.22,234.99,234.9,9.2141559]
[1759776057756,5.7715559,235.0,234.91,7.27]
[1759776058653,5.7715559,235.0,234.93,7.27]
[1759776058856,3.8271,235.03,234.93,7.27]
[1759776059054,109.0271,235.03,234.94,7.27]
[1759776059256,109.0271,235.03,234.93,7.27]
[1759776060263,109.0271,235.03,234.89,59.5664]
[1759776060264,105.2,235.03,234.95,1.9441559]
[1759776060557,105.2,235.03,234.96,7.27]
[1759776060759,105.2,235.03,235.01,7.27]
[1759776061066,59.5046,235.14,235.01,7.27]
[1759776061261,3.826,235.09,235.02,7.27]
[1759776061663,3.00764198,235.12,235.02,7.27]
[1759776061964,5.97847495,235.12,235.02,7.27]
[1759776062163,4.03431905,235.12,235.02,7.27]
[1759776062359,1.9441559,235.11,235.02,7.27]
[1759776062563,3.826,235.09,235.02,7.27]
[1759776063158,1.9441559,235.08,234.94,7.27]
[1759776063368,1.9441559,235.02,234.94,7.27]
[1759776063564,41.1041559,235.02,234.94,7.27]
[1759776063764,3.8273,235.01,234.94,7.27]
[1759776064564,39.16,235.02,234.95,7.27]
[1759776065665,39.16,235.02,234.95,11.0981]
[1759776066558,42.9871,235.02,234.95,7.27]
[1759776066870,39.16,235.02,234.95,7.27]
[1759776068466,3.8266,235.05,234.95,7.27]
[1759776068665,2.97677604,235.04,234.95,7.27]
[1759776068964,4.04034944,235.04,234.95,7.27]
[1759776069167,2.97677604,235.04,234.95,7.27]
[1759776069366,2.97677604,235.04,234.97,7.27]
[1759776069870,4.04037415,235.04,234.98,3.8277]
[1759776070670,4.04037415,235.04,234.97,7.27]
[1759776071372,7.86727337,235.04,234.97,7.27]
[1759776071572,105.16,235.06,234.97,7.27]
[1759776071872,4.05086133,235.05,234.97,7.27]
[1759776072565,3.8271,235.02,234.97,7.27]
[1759776073076,3.8271,235.02,234.95,7.27]
[1759776073369,2.9878053,235.01,234.95,7.27]
[1759776074071,3.8271,235.02,234.95,7.27]
[1759776074572,2.9878838,235.01,234.95,7.27]
[1759776074870,2.98784124,235.01,234.95,7.27]
[1759776075372,2.9871841,235.01,234.95,7.27]
[1759776076472,3.8271,235.02,234.95,7.27]
[1759776076667,3.8271,235.02,234.88,62.61005161]
[1759776076668,3.8268,235.04,234.92,7.27]
[1759776076870,2.98765359,235.03,234.92,7.27]
[1759776077369,3.8268,235.04,234.92,7.27]
[1759776077575,2.9873884,235.03,234.94,3.8283]
[1759776077768,2.9873884,235.03,234.95,7.27]
[1759776079674,2.9873884,235.03,234.96,3.8279]
[1759776080172,3.8268,235.04,234.96,3.8279]
[1759776080373,3.8268,235.04,234.97,11.1378]
[1759776080671,1.063604,235.05,234.94,7.31]
[1759776080872,4.05014192,235.05,234.94,7.31]
[1759776081575,4.05014192,235.05,234.98,3.8276]
[1759776081780,2.98653792,235.05,234.99,7.31]
[1759776082077,2.98653792,235.07,234.99,7.31]
[1759776082272,4.04994871,235.07,234.99,7.31]
[1759776083571,7.09218806,235.07,234.89,66.8761]
[1759776083875,2.98653792,235.06,234.9,7.31]
[1759776084579,3.8273,235.02,234.94,3.8284]
[1759776084774,3.8273,235.02,234.95,7.31]
[1759776084980,4.10565014,235.07,234.95,7.31]
[1759776085175,2.985155,235.06,234.95,7.31]
[1759776085778,6.811755,235.06,234.97,7.31]
[1759776086077,2.985155,235.05,234.97,7.31]
[1759776087282,2.985155,235.05,234.97,11.1378]
[1759776088176,2.985155,235.05,234.98,11.1376]
[1759776088482,2.985155,235.05,234.99,7.31]
[1759776088679,4.89009853,235.06,234.99,7.31]
[1759776088881,105.12,235.07,235.0,3.8274]
[1759776089082,2.98482825,235.06,235.0,3.8274]
[1759776089580,2.98482825,235.06,235.01,7.31]
[1759776089779,2.98482825,235.06,234.99,7.31]
[1759776090781,2.98482825,235.06,235.0,3.8274]
[1759776092482,105.12,235.07,235.0,3.8274]
[1759776092679,105.12,235.07,235.02,7.31]
[1759776092876,105.12,235.07,235.01,3.8271]
[1759776093681,105.12,235.07,235.01,11.1371]
[1759776093985,105.12,235.07,235.01,7.31]
[1759776094180,2.98572655,235.06,234.99,7.31]
[1759776097180,4.0491903,235.06,234.95,7.85]
[1759776097484,3.04215161,235.03,234.88,7.85]
[1759776098785,3.8277,234.99,234.92,7.85]
[1759776099087,2.98572655,234.98,234.92,7.85]
[1759776099581,2.98572655,234.99,234.92,7.85]
[1759776100089,43.8,235.0,234.92,7.85]
[1759776100984,43.8,235.0,234.97,3.8278]
[1759776101687,43.8,235.0,234.98,7.85]
[1759776101983,43.8,235.0,234.97,3.8278]
[1759776102286,3.04215161,235.06,234.98,7.85]
[1759776102487,6.10259264,235.06,234.98,7.85]
[1759776102684,69.2,235.05,234.98,7.85]
[1759776102878,3.06044103,235.04,234.98,7.85]
[1759776103590,4.12393058,235.04,234.98,7.85]
[1759776104081,3.04215161,235.06,234.98,7.85]
[1759776104082,3.06044103,235.03,234.99,7.85]
[1759776104384,4.12393058,235.05,234.95,7.85]
[1759776104787,3.06044103,235.04,234.95,7.85]
[1759776104985,3.06044103,235.06,234.95,7.85]
[1759776105185,4.12390089,235.06,234.95,7.85]
[1759776105588,4.12390089,235.06,234.99,3.8275]
[1759776107791,3.06068107,235.05,234.99,3.8275]
[1759776107987,4.12414093,235.06,234.99,3.8275]
[1759776109195,3.8266,235.05,234.99,3.8275]
[1759776109394,3.06068107,235.04,234.99,3.8275]
[1759776109896,3.06068107,235.04,235.0,7.58]
[1759776111097,4.12414093,235.06,235.0,7.58]
[1759776111498,4.12414093,235.06,235.0,11.4073]
[1759776114594,4.12414093,235.06,235.02,7.58]
[1759776114796,4.12414093,235.06,235.01,3.8271]
[1759776115002,4.12414093,235.06,235.02,7.58]
[1759776115700,4.12414093,235.06,235.03,3.8269]
[1759776115897,1.06345986,235.12,235.04,7.58]
[1759776116101,4.11874336,235.13,235.04,7.58]
[1759776117599,4.11874336,235.13,235.05,3.8266]
[1759776117798,4.11874336,235.13,235.06,7.58]
[1759776118603,4.11874336,235.13,235.07,3.8262]
[1759776119203,3.0552835,235.13,235.09,3.8259]
[1759776119404,55.43832479,235.15,235.09,3.8259]
[1759776119699,55.43832479,235.15,235.1,7.58]
[1759776119700,3.0552835,235.14,235.1,7.58]
[1759776119903,3.0552835,235.14,235.09,3.8259]
[1759776120899,51.32,235.15,235.09,3.8259]
[1759776121104,51.32,235.15,235.11,3.8256]
[1759776121404,51.32,235.15,235.12,7.58]
[1759776122097,51.32,235.15,235.11,3.8256]
[1759776122300,51.32,235.15,235.12,7.58]
[1759776122503,51.32,235.15,235.11,3.8256]
[1759776122698,51.32,235.15,235.12,7.58]
[1759776123404,10.12980326,235.23,235.12,7.58]
[1759776123601,109.11095942,235.22,235.12,7.58]
[1759776123806,109.11095942,235.22,235.13,3.8253]
[1759776123807,4.11095942,235.21,235.13,3.8253]
[1759776124606,4.11095942,235.21,235.14,7.58]
[1759776124801,105.0,235.22,235.14,7.58]
[1759776126899,105.0,235.22,235.16,7.58]
[1759776127913,105.0,235.22,235.17,3.8246]
[1759776128600,105.0,235.22,235.18,7.58]
[1759776128999,105.0,235.22,235.17,3.8246]
[1759776129213,105.0,235.22,235.18,7.58]
[1759776129408,105.0,235.22,235.17,3.8246]
[1759776129606,105.0,235.22,235.18,7.58]
[1759776129902,105.0,235.22,235.17,3.8246]
[1759776130113,105.0,235.22,235.18,7.58]
[1759776130313,105.0,235.22,235.16,7.58]
[1759776131706,105.0,235.22,235.16,11.4048]
[1759776132112,105.0,235.22,235.16,7.58]
[1759776132317,1.94332919,235.2,235.12,7.58]
[1759776133716,1.94332919,235.2,235.12,11.4055]
[1759776134018,1.94332919,235.17,235.12,7.58]
[1759776134821,1.94332919,235.17,235.11,11.4056]
[1759776136019,105.0,235.22,235.14,7.58]
[1759776136219,106.94332919,235.22,235.14,7.58]
[1759776137627,106.94332919,235.22,235.15,3.825]
[1759776139427,104.9,235.21,235.15,3.825]
[1759776139723,1.94332919,235.22,235.14,7.58]
[1759776139921,104.9,235.21,235.14,7.58]
[1759776140425,104.9,235.21,235.14,11.405]
[1759776141125,104.9,235.21,235.15,3.8249]
[1759776142322,104.9,235.21,235.16,3.8247]
[1759776142620,104.9,235.21,235.17,7.36]
[1759776143029,1.94332919,235.22,235.17,7.36]
[1759776143223,106.84332919,235.22,235.17,7.36]
[1759776143820,1.94332919,235.22,235.17,7.36]
[1759776144028,104.9,235.21,235.17,7.36]
[1759776144428,1.94332919,235.22,235.17,7.36]
[1759776144722,1.94332919,235.22,235.16,3.8247]
[1759776144723,1.94332919,235.27,235.21,3.824]
[1759776144922,106.84332919,235.27,235.21,3.824]
[1759776146328,106.84332919,235.27,235.19,7.36]
[1759776146528,1.94332919,235.24,235.18,3.8244]
[1759776147821,1.94332919,235.24,235.16,3.8248]
[1759776150624,3.8237,235.23,235.15,7.36]
[1759776151032,1.94332919,235.24,235.15,7.36]
[1759776152636,1.94332919,235.24,235.17,3.8246]
[1759776155134,4.10020207,235.25,235.17,3.8246]
[1759776155333,4.98083868,235.25,235.17,3.8246]
[1759776155534,6.04353126,235.25,235.17,3.8246]
[1759776155935,6.04353126,235.25,235.18,7.21]
[1759776156232,4.10020207,235.25,235.18,7.21]
[1759776156431,3.03750949,235.24,235.18,7.21]
[1759776156635,4.10020207,235.25,235.18,7.21]
[1759776157034,32.18,235.26,235.18,7.21]
[1759776157934,46.76,235.28,235.18,7.21]
[1759776158231,3.05071813,235.27,235.18,7.21]
[1759776158535,3.05071813,235.27,235.17,1.94332919]
[1759776158536,3.05071813,235.27,235.22,3.8239]
[1759776158732,3.05071813,235.27,235.17,1.94332919]
[1759776158937,3.05071813,235.27,235.18,7.21]
[1759776159639,3.05071813,235.27,235.23,3.8236]
[1759776159832,3.05071813,235.27,235.24,7.21]
[1759776160736,3.05071813,235.27,235.2,11.0341]
[1759776160935,1.94332919,235.26,235.2,7.21]
[1759776161341,4.99404732,235.26,235.2,7.21]
[1759776162342,6.05657269,235.26,235.2,7.21]
[1759776162538,4.99404732,235.26,235.2,11.034]